fUSD/lending_fUSD_20251217
["ID","MTS","AMOUNT","RATE_DAILY","PERIOD"]
[398931184,1766004639901,-500.0,0.00013591,2]
[398931185,1766004639910,-151.0,0.00013591,2]
[398931186,1766004639920,-500.0,0.00013591,2]
[398931187,1766004639929,-500.0,0.00013591,2]
[398931188,1766004639938,-500.0,0.00013591,2]
[398931189,1766004639947,-200.0,0.00013591,2]
[398931190,1766004639956,-760000.0,0.00013599,2]
[398931191,1766004639966,-289.44,0.00013685,2]
[398931192,1766004639975,-500.0,0.00013698,2]
[398931193,1766004639984,-500.0,0.00013698,2]
[398931194,1766004639994,-500.0,0.00013698,2]
[398931195,1766004640003,-500.0,0.00013698,2]
[398931196,1766004640013,-500.0,0.00013698,2]
[398931197,1766004640022,-500.0,0.00013698,2]
[398931198,1766004640031,-500.0,0.00013698,2]
[398931199,1766004640040,-500.0,0.00013698,2]
[398931200,1766004640050,-500.0,0.00013698,2]
[398931201,1766004640062,-500.0,0.00013698,2]
[398931202,1766004640071,-300.24817944,0.00013698,2]
[398931203,1766004640080,-500.0,0.00013698,2]
[398931204,1766004640091,-500.0,0.00013698,2]
[398931205,1766004640100,-500.0,0.00013698,2]
[398931206,1766004640110,-500.0,0.00013698,2]
[398931207,1766004640119,-500.0,0.00013698,2]
[398931208,1766004640129,-305.17878308,0.00013698,2]
[398931209,1766004640138,-500.0,0.00013698,2]
[398931210,1766004640147,-500.0,0.00013698,2]
[398931211,1766004640156,-500.0,0.00013698,2]
[398931212,1766004640165,-500.0,0.00013698,2]
[398931213,1766004640174,-500.0,0.00013698,2]
[398931214,1766004640183,-500.0,0.00013698,2]
[398931215,1766004640192,-4706.37,0.00013698,2]
[398931216,1766004640201,-4706.37,0.00013698,2]
[398931217,1766004640211,-4706.37,0.00013698,2]
[398931218,1766004640220,-4706.37,0.00013698,2]
[398931219,1766004640229,-4706.37,0.00013698,2]
[398931220,1766004640238,-4706.37,0.00013698,2]
[398931221,1766004640247,-4706.37,0.00013698,2]
[398931222,1766004640257,-4706.37,0.00013698,2]
[398931223,1766004640266,-4706.37,0.00013698,2]
[398931224,1766004640275,-4706.37,0.00013698,2]
[398931225,1766004640285,-4706.37,0.00013698,2]
[398931226,1766004640294,-4706.37,0.00013698,2]
[398931227,1766004640307,-4706.37,0.00013698,2]
[398931228,1766004640317,-4706.37,0.00013698,2]
[398931229,1766004640327,-4706.37,0.00013698,2]
[398931230,1766004640336,-4706.37,0.00013698,2]
[398931231,1766004640345,-4706.37,0.00013698,2]
[398931232,1766004640355,-4706.37,0.00013698,2]
[398931233,1766004640364,-4706.37,0.00013698,2]
[398931234,1766004640373,-4706.37,0.00013698,2]
[398931235,1766004640383,-4706.37,0.00013698,2]
[398931236,1766004640392,-4706.37,0.00013698,2]
[398931237,1766004640402,-4706.37,0.00013698,2]
[398931238,1766004640412,-4706.52747309,0.00013698,2]
[398931239,1766004640421,-500.0,0.00013698,2]
[398931240,1766004640430,-500.0,0.00013698,2]
[398931241,1766004640440,-500.0,0.00013698,2]
[398931242,1766004640449,-496.32078137,0.00013698,2]
[398931243,1766004640459,-500.0,0.00013698,2]
[398931244,1766004640468,-500.0,0.00013698,2]
[398931245,1766004640477,-500.0,0.00013698,2]
[398931246,1766004640487,-500.0,0.00013698,2]
[398931247,1766004640496,-500.0,0.00013698,2]
[398931248,1766004640505,-500.0,0.00013698,2]
[398931249,1766004640514,-500.0,0.00013698,2]
[398931250,1766004640523,-500.0,0.00013698,2]
[398931251,1766004640531,-500.0,0.00013698,2]
[398931252,1766004640540,-500.0,0.00013698,2]
[398931253,1766004640550,-500.0,0.00013698,2]
[398931254,1766004640559,-500.0,0.00013698,2]
[398931255,1766004640569,-610.37514729,0.00013698,2]
[398931256,1766004640578,-500.0,0.00013698,2]
[398931257,1766004640587,-500.0,0.00013698,2]
[398931258,1766004640596,-508.5401249,0.00013698,2]
[398931259,1766004640605,-500.0,0.00013698,2]
[398931260,1766004640615,-500.0,0.00013698,2]
[398931261,1766004640624,-300.0,0.00013698,2]
[398931262,1766004640633,-300.0,0.00013698,2]
[398931263,1766004640642,-300.0,0.00013698,2]
[398931264,1766004640652,-300.0,0.00013698,2]
[398931265,1766004640661,-300.0,0.00013698,2]
[398931266,1766004640671,-300.0,0.00013698,2]
[398931267,1766004640680,-300.0,0.00013698,2]
[398931268,1766004640690,-300.0,0.00013698,2]
[398931269,1766004640699,-300.0,0.00013698,2]
[398931270,1766004640708,-358.88934253,0.00013698,2]
[398931271,1766004640717,-500.0,0.00013698,2]
[398931272,1766004640727,-1000.0,0.00013698,2]
[398931274,1766004640736,-1000.0,0.00013698,2]
[398931276,1766004640745,-1000.0,0.00013698,2]
[398931277,1766004640754,-1000.0,0.00013698,2]
[398931278,1766004640763,-1000.0,0.00013698,2]
[398931279,1766004640773,-1000.0,0.00013698,2]
[398931280,1766004640783,-1000.0,0.00013698,2]
[398931281,1766004640792,-1000.0,0.00013698,2]
[398931282,1766004640801,-1000.0,0.00013698,2]
[398931283,1766004640810,-1000.0,0.00013698,2]
[398931284,1766004640820,-725.73772161,0.00013698,2]
[398931285,1766004640829,-500.0,0.00013698,2]
[398931286,1766004640838,-500.0,0.00013698,2]
[398931287,1766004640848,-500.0,0.00013698,2]
[398931288,1766004640857,-840.9,0.00013699,2]
[398931289,1766004640867,-13692.05,0.00013699,2]
[398931290,1766004640876,-200.0,0.00013699,2]
[398931291,1766004640886,-155.53,0.000137,2]
[398931292,1766004640895,-155.53,0.000137,2]
[398931293,1766004640905,-155.53,0.000137,2]
[398931295,1766004640914,-1551.16,0.00013772,2]
[398931296,1766004640924,-1826.8994,0.00013773,2]
[398931297,1766004640934,-17938.75222853,0.0001387,2]
[398931298,1766004640943,-217.0,0.00013891,2]
[398931299,1766004640952,-386.0,0.00013891,2]
[398931301,1766004640961,-1900.0,0.00013918,2]
[398931302,1766004640970,-1000.0,0.00013921,2]
[398931303,1766004640979,-946.79619718,0.00013921,2]
[398931304,1766004640988,-1024.0,0.00013946,2]
[398931305,1766004640997,-19889.4749073,0.00013953,2]
[398931306,1766004641007,-857.0,0.0001396,2]
[398931307,1766004641016,-1551.16,0.00014046,2]
[398931308,1766004641026,-1398.69219027,0.00014059,2]
[398931309,1766004641036,-617.0,0.00014077,2]
[398931310,1766004641045,-289.0,0.00014077,2]
[398931311,1766004641057,-1863.87983717,0.00014081,2]
[398931312,1766004641067,-193.52,0.00014089,2]
[398931313,1766004641076,-15170.4991,0.00014091,2]
[398931314,1766004641086,-1000.0,0.00014091,2]
[398931315,1766004641096,-300.0,0.00014115,2]
[398931316,1766004641106,-300.0,0.00014115,2]
[398931317,1766004641115,-300.0,0.00014115,2]
[398931318,1766004641124,-300.0,0.00014115,2]
[398931319,1766004641135,-300.24027772,0.00014115,2]
[398931320,1766004641145,-325.35158543,0.00014115,2]
[398931321,1766004641154,-392.59,0.00014138,2]
[398931322,1766004641163,-500.0,0.00014139,2]
[398931323,1766004641172,-200.0,0.00014139,2]
[398931324,1766004641182,-200.0,0.00014139,2]
[398931325,1766004641192,-380.0,0.00014183,2]
[398931326,1766004641201,-174.0,0.00014183,2]
[398931327,1766004641211,-407.0,0.00014212,2]
[398931328,1766004641220,-17938.75222853,0.00014249,2]
[398931329,1766004641229,-1551.16,0.0001432,2]
[398931330,1766004641238,-19889.4749073,0.00014322,2]
[398931331,1766004641248,-289.44,0.00014406,2]
[398931332,1766004641257,-1500.0,0.00014468,2]
[398931333,1766004641267,-500.0,0.00014492,2]
[398931334,1766004641276,-500.0,0.00014492,2]
[398931335,1766004641286,-500.0,0.00014493,2]
[398931336,1766004641295,-500.0,0.00014493,2]
[398931337,1766004641306,-500.0,0.00014493,2]
[398931338,1766004641317,-500.0,0.00014493,2]
[398931339,1766004641327,-500.0,0.00014493,2]
[398931340,1766004641336,-500.0,0.00014493,2]
[398931341,1766004641345,-500.0,0.00014493,2]
[398931342,1766004641354,-500.0,0.00014493,2]
[398931343,1766004641363,-500.0,0.00014493,2]
[398931344,1766004641372,-500.0,0.00014493,2]
[398931345,1766004641381,-500.0,0.00014493,2]
[398931346,1766004641390,-500.0,0.00014493,2]
[398931347,1766004641399,-500.0,0.00014493,2]
[398931348,1766004641409,-500.0,0.00014493,2]
[398931349,1766004641419,-500.0,0.00014493,2]
[398931350,1766004641428,-500.0,0.00014493,2]
[398931351,1766004641438,-500.0,0.00014493,2]
[398931352,1766004641448,-500.0,0.00014493,2]
[398931353,1766004641459,-500.0,0.00014493,2]
[398931354,1766004641468,-500.0,0.00014493,2]
[398931355,1766004641477,-500.0,0.00014493,2]
[398931356,1766004641486,-500.0,0.00014493,2]
[398931357,1766004641495,-500.0,0.00014493,2]
[398931358,1766004641504,-500.0,0.00014493,2]
[398931359,1766004641514,-500.0,0.00014493,2]
[398931360,1766004641523,-500.0,0.00014493,2]
[398931361,1766004641533,-500.0,0.00014493,2]
[398931362,1766004641542,-500.0,0.00014493,2]
[398931363,1766004641551,-500.0,0.00014493,2]
[398931364,1766004641560,-500.0,0.00014493,2]
[398931365,1766004641569,-500.0,0.00014493,2]
[398931366,1766004641578,-286.90864955,0.00014493,2]
[398931367,1766004641586,-500.0,0.00014493,2]
[398931368,1766004641596,-500.0,0.00014493,2]
[398931369,1766004641605,-500.0,0.00014493,2]
[398931370,1766004641614,-500.0,0.00014493,2]
[398931371,1766004641623,-500.0,0.00014493,2]
[398931372,1766004641633,-500.0,0.00014493,2]
[398931373,1766004641642,-1232.86,0.00014504,2]
[398931374,1766004641651,-1398.69219027,0.00014532,2]
[398931375,1766004641660,-1551.16,0.00014594,2]
[398931376,1766004641669,-255.0,0.00014618,2]
[398931377,1766004641678,-17938.75222853,0.00014627,2]
[398931378,1766004641687,-500.0,0.00014635,2]
[398931379,1766004641696,-500.0,0.00014635,2]
[398931380,1766004641706,-500.0,0.00014635,2]
[398931381,1766004641716,-500.0,0.00014635,2]
[398931382,1766004641725,-500.0,0.00014635,2]
[398931383,1766004641734,-500.0,0.00014635,2]
[398931384,1766004641743,-500.0,0.00014635,2]
[398931385,1766004641752,-500.0,0.00014635,2]
[398931386,1766004641761,-500.0,0.00014635,2]
[398931387,1766004641771,-500.0,0.00014635,2]
[398931388,1766004641781,-500.0,0.00014635,2]
[398931389,1766004641791,-500.0,0.00014635,2]
[398931390,1766004641801,-500.0,0.00014635,2]
[398931391,1766004641810,-500.0,0.00014635,2]
[398931392,1766004641820,-500.0,0.00014635,2]
[398931393,1766004641830,-500.0,0.00014635,2]
[398931394,1766004641840,-500.0,0.00014635,2]
[398931395,1766004641849,-500.0,0.00014635,2]
[398931396,1766004641859,-500.0,0.00014635,2]
[398931397,1766004641868,-500.0,0.00014635,2]
[398931398,1766004641877,-500.0,0.00014635,2]
[398931399,1766004641886,-500.0,0.00014635,2]
[398931400,1766004641896,-500.0,0.00014635,2]
[398931401,1766004641905,-500.0,0.00014635,2]
[398931402,1766004641915,-500.0,0.00014635,2]
[398931403,1766004641924,-500.0,0.00014635,2]
[398931404,1766004641933,-500.0,0.00014635,2]
[398931405,1766004641944,-500.0,0.00014635,2]
[398931406,1766004641953,-500.0,0.00014635,2]
[398931407,1766004641962,-500.0,0.00014635,2]
[398931408,1766004641971,-500.0,0.00014635,2]
[398931409,1766004641980,-500.0,0.00014635,2]
[398931410,1766004641989,-500.0,0.00014635,2]
[398931411,1766004641999,-500.0,0.00014635,2]
[398931412,1766004642008,-500.0,0.00014635,2]
[398931413,1766004642017,-500.0,0.00014635,2]
[398931414,1766004642026,-500.0,0.00014635,2]
[398931415,1766004642036,-500.0,0.00014635,2]
[398931416,1766004642045,-500.0,0.00014635,2]
[398931417,1766004642056,-500.0,0.00014635,2]
[398931418,1766004642067,-500.0,0.00014635,2]
[398931419,1766004642077,-500.0,0.00014635,2]
[398931420,1766004642086,-500.0,0.00014635,2]
[398931421,1766004642095,-500.0,0.00014635,2]
[398931422,1766004642105,-500.0,0.00014635,2]
[398931423,1766004642115,-500.0,0.00014635,2]
[398931424,1766004642124,-500.0,0.00014635,2]
[398931425,1766004642136,-530.90558396,0.00014635,2]
[398931426,1766004642144,-503.92687303,0.00014635,2]
[398931427,1766004642154,-500.0,0.00014635,2]
[398931428,1766004642481,-500.0,0.00014635,2]
[398931429,1766004642490,-500.0,0.00014635,2]
[398931430,1766004642499,-500.0,0.00014635,2]
[398931431,1766004642508,-514.23721699,0.00014635,2]
[398931432,1766004642517,-500.0,0.00014635,2]
[398931433,1766004642526,-500.0,0.00014635,2]
[398931434,1766004642536,-500.0,0.00014635,2]
[398931435,1766004642545,-500.0,0.00014635,2]
[398931436,1766004642554,-500.0,0.00014635,2]
[398931437,1766004642563,-500.0,0.00014635,2]
[398931438,1766004642572,-500.0,0.00014635,2]
[398931439,1766004642581,-641.1096514,0.00014635,2]
[398931440,1766004642590,-500.0,0.00014635,2]
[398931441,1766004642599,-500.0,0.00014635,2]
[398931442,1766004642608,-500.0,0.00014635,2]
[398931443,1766004642617,-500.0,0.00014635,2]
[398931444,1766004642626,-532.30126089,0.00014635,2]
[398931445,1766004642635,-500.0,0.00014635,2]
[398931446,1766004642644,-500.0,0.00014635,2]
[398931447,1766004642653,-500.0,0.00014635,2]
[398931448,1766004642663,-500.0,0.00014635,2]
[398931449,1766004642671,-500.0,0.00014635,2]
[398931450,1766004642680,-500.0,0.00014635,2]
[398931451,1766004642690,-500.0,0.00014635,2]
[398931452,1766004642700,-500.0,0.00014635,2]
[398931453,1766004642709,-586.97867611,0.00014635,2]
[398931454,1766004642719,-500.0,0.00014635,2]
[398931455,1766004642728,-500.0,0.00014635,2]
[398931456,1766004642738,-500.0,0.00014635,2]
[398931457,1766004642748,-500.0,0.00014635,2]
[398931458,1766004642756,-504.44339488,0.00014635,2]
[398931459,1766004642765,-500.0,0.00014635,2]
[398931460,1766004642775,-500.0,0.00014635,2]
[398931461,1766004642784,-500.0,0.00014635,2]
[398931462,1766004642794,-500.0,0.00014635,2]
[398931463,1766004642803,-500.0,0.00014635,2]
[398931464,1766004642811,-500.0,0.00014635,2]
[398931465,1766004642820,-500.0,0.00014635,2]
[398931466,1766004642830,-500.0,0.00014657,2]
[398931467,1766004642839,-500.0,0.00014657,2]
[398931468,1766004642849,-500.0,0.00014657,2]
[398931469,1766004642858,-500.0,0.00014657,2]
[398931470,1766004642867,-500.0,0.00014657,2]
[398931471,1766004642876,-500.0,0.00014657,2]
[398931472,1766004642885,-500.0,0.00014657,2]
[398931473,1766004642894,-500.0,0.00014657,2]
[398931474,1766004642904,-500.0,0.00014657,2]
[398931475,1766004642913,-500.0,0.00014657,2]
[398931476,1766004642922,-236.05898136,0.00014657,2]
[398931477,1766004642931,-500.0,0.00014657,2]
[398931478,1766004642940,-500.0,0.00014657,2]
[398931479,1766004642949,-357.14795574,0.00014657,2]
[398931480,1766004642959,-500.0,0.00014657,2]
[398931481,1766004642968,-500.0,0.00014657,2]
[398931482,1766004642977,-500.0,0.00014657,2]
[398931483,1766004642986,-500.0,0.00014657,2]
[398931484,1766004642995,-5679.68819907,0.00014658,2]
[398931485,1766004643004,-693.08117626,0.00014658,2]
[398931486,1766004643013,-500.0,0.00014687,2]
[398931487,1766004643023,-200.0,0.00014687,2]
[398931488,1766004643031,-200.0,0.00014687,2]
[398931489,1766004643040,-19889.4749073,0.0001469,2]
[398931490,1766004643050,-1680.0,0.00014709,2]
[398931491,1766004643063,-420.0,0.00014786,2]
[398931493,1766004643072,-420.0,0.00014786,2]
[398931495,1766004643081,-1551.16,0.00014868,2]
[398931496,1766004643089,-150.53901239,0.000149,2]
[398931497,1766004643100,-150.53901239,0.000149,2]
[398931498,1766004643109,-150.53901239,0.000149,2]
[398931499,1766004643119,-1398.69219027,0.00015006,2]
[398931500,1766004643130,-17938.75222853,0.00015006,2]
[398931501,1766004643139,-718.02510234,0.00015016,2]
[398931502,1766004643148,-19889.4749073,0.00015058,2]
[398931503,1766004643157,-289.44,0.00015126,2]
[398931504,1766004643167,-1551.16,0.00015142,2]
[398931505,1766004643176,-500.0,0.00015235,2]
[398931507,1766004643185,-200.0,0.00015235,2]
[398931508,1766004643194,-150.00000001,0.00015288,2]
[398931511,1766004643203,-150.0,0.00015288,2]
[398931514,1766004643212,-150.0,0.00015288,2]
[398931517,1766004643221,-150.0,0.00015288,2]
[398931520,1766004643230,-150.0,0.00015288,2]
[398931523,1766004643239,-150.0,0.00015288,2]
[398931527,1766004643249,-150.0,0.00015288,2]
[398931529,1766004643258,-150.0,0.00015288,2]
[398931531,1766004643267,-150.0,0.00015288,2]
[398931533,1766004643277,-150.0,0.00015288,2]
[398931534,1766004643286,-150.0,0.00015288,2]
[398931535,1766004643295,-150.0,0.00015288,2]
[398931536,1766004643305,-150.0,0.00015288,2]
[398931537,1766004643314,-150.0,0.00015288,2]
[398931538,1766004643323,-150.0,0.00015288,2]
[398931539,1766004643332,-150.0,0.00015308,2]
[398931540,1766004643341,-150.0,0.00015314,2]
[398931541,1766004643351,-150.0,0.00015317,2]
[398931542,1766004643360,-150.0,0.00015325,2]
[398931543,1766004643369,-150.0,0.00015325,2]
[398931544,1766004643378,-150.0,0.00015327,2]
[398931545,1766004643386,-150.0,0.00015329,2]
[398931546,1766004643395,-500.0,0.00015333,2]
[398931547,1766004643405,-500.0,0.00015334,2]
[398931548,1766004643414,-500.0,0.00015334,2]
[398931549,1766004643423,-500.0,0.00015334,2]
[398931550,1766004643432,-500.0,0.00015334,2]
[398931551,1766004643441,-500.0,0.00015334,2]
[398931552,1766004643451,-500.0,0.00015334,2]
[398931553,1766004643460,-500.0,0.00015334,2]
[398931554,1766004643469,-467.07246893,0.00015334,2]
[398931555,1766004643478,-500.0,0.00015334,2]
[398931556,1766004643487,-645.50218631,0.00015334,2]
[398931557,1766004643496,-500.0,0.00015334,2]
[398931558,1766004643505,-500.0,0.00015334,2]
[398931559,1766004643514,-500.0,0.00015334,2]
[398931560,1766004643523,-500.0,0.00015334,2]
[398931561,1766004643531,-500.0,0.00015334,2]
[398931562,1766004643542,-500.0,0.00015334,2]
[398931563,1766004643551,-500.0,0.00015334,2]
[398931564,1766004643560,-150.0,0.00015336,2]
[398931565,1766004643569,-150.0,0.0001534,2]
[398931566,1766004643579,-150.0,0.00015346,2]
[398931567,1766004643587,-150.0,0.0001535,2]
[398931568,1766004643596,-150.0,0.00015362,2]
[398931569,1766004643606,-150.0,0.00015363,2]
[398931570,1766004643615,-150.0,0.00015366,2]
[398931571,1766004643624,-150.0,0.00015367,2]
[398931572,1766004643634,-150.0,0.00015371,2]
[398931573,1766004643643,-150.0,0.00015373,2]
[398931574,1766004643653,-150.0,0.00015376,2]
[398931575,1766004643662,-150.0,0.00015385,2]
[398931576,1766004643672,-17938.75222853,0.00015385,2]
[398931578,1766004643682,-150.0,0.00015391,2]
[398931579,1766004643691,-150.0,0.00015392,2]
[398931580,1766004643699,-150.0,0.00015398,2]
[398931581,1766004643708,-150.0,0.00015401,2]
[398931582,1766004643717,-150.0,0.00015405,2]
[398931583,1766004643725,-150.0,0.00015406,2]
[398931584,1766004643734,-150.0,0.00015409,2]
[398931585,1766004643743,-150.0,0.00015412,2]
[398931586,1766004643753,-1551.16,0.00015416,2]
[398931587,1766004643762,-150.0,0.00015418,2]
[398931588,1766004643771,-150.0,0.00015418,2]
[398931590,1766004643781,-19889.4749073,0.00015427,2]
[398931591,1766004643790,-150.0,0.00015429,2]
[398931592,1766004643799,-150.0,0.00015433,2]
[398931593,1766004643808,-150.0,0.00015433,2]
[398931594,1766004643817,-150.0,0.00015434,2]
[398931595,1766004643826,-150.0,0.00015435,2]
[398931596,1766004643835,-150.0,0.00015439,2]
[398931597,1766004643843,-150.0,0.00015444,2]
[398931598,1766004643853,-150.0,0.00015446,2]
[398931599,1766004643862,-150.0,0.00015453,2]
[398931600,1766004643871,-150.0,0.00015458,2]
[398931601,1766004643880,-150.0,0.00015463,2]
[398931602,1766004643891,-150.0,0.00015471,2]
[398931603,1766004643900,-150.0,0.00015472,2]
[398931604,1766004643910,-500.0,0.00015473,2]
[398931605,1766004643919,-500.0,0.00015473,2]
[398931606,1766004643928,-270.30071685,0.00015473,2]
[398931607,1766004643940,-530.10800238,0.00015473,2]
[398931608,1766004643949,-500.0,0.00015473,2]
[398931609,1766004643958,-500.0,0.00015473,2]
[398931610,1766004643967,-500.0,0.00015473,2]
[398931611,1766004643976,-500.0,0.00015473,2]
[398931612,1766004643985,-500.0,0.00015473,2]
[398931613,1766004643994,-500.0,0.00015473,2]
[398931614,1766004644003,-500.0,0.00015473,2]
[398931615,1766004644013,-500.0,0.00015473,2]
[398931616,1766004644022,-500.0,0.00015473,2]
[398931617,1766004644031,-500.0,0.00015473,2]
[398931618,1766004644041,-500.0,0.00015473,2]
[398931619,1766004644052,-500.0,0.00015473,2]
[398931620,1766004644062,-500.0,0.00015473,2]
[398931621,1766004644073,-500.0,0.00015473,2]
[398931622,1766004644082,-150.0,0.00015474,2]
[398931623,1766004644091,-150.0,0.00015476,2]
[398931624,1766004644102,-1398.69219027,0.00015479,2]
[398931625,1766004644111,-150.0,0.00015482,2]
[398931626,1766004644121,-150.0,0.00015485,2]
[398931627,1766004644130,-150.0,0.00015493,2]
[398931628,1766004644139,-150.0,0.00015495,2]
[398931629,1766004644148,-150.0,0.00015497,2]
[398931630,1766004644158,-150.0,0.00015509,2]
[398931631,1766004644167,-150.0,0.00015514,2]
[398931632,1766004644176,-150.0,0.00015516,2]
[398931633,1766004644185,-150.0,0.00015522,2]
[398931634,1766004644194,-150.0,0.00015523,2]
[398931635,1766004644203,-150.0,0.00015525,2]
[398931636,1766004644211,-150.0,0.0001553,2]
[398931637,1766004644221,-150.0,0.0001553,2]
[398931638,1766004644229,-193.52,0.00015531,2]
[398931639,1766004644238,-150.0,0.00015536,2]
[398931640,1766004644247,-150.0,0.00015542,2]
[398931641,1766004644256,-150.0,0.00015546,2]
[398931642,1766004644266,-150.0,0.00015549,2]
[398931643,1766004644275,-150.0,0.00015549,2]
[398931644,1766004644285,-150.0,0.00015551,2]
[398931645,1766004644294,-150.0,0.00015552,2]
[398931646,1766004644303,-150.0,0.00015557,2]
[398931647,1766004644311,-150.0,0.00015564,2]
[398931648,1766004644320,-150.0,0.00015571,2]
[398931649,1766004644329,-150.0,0.00015571,2]
[398931650,1766004644338,-150.0,0.00015575,2]
[398931651,1766004644347,-150.0,0.00015578,2]
[398931652,1766004644356,-150.0,0.00015579,2]
[398931653,1766004644364,-150.0,0.00015581,2]
[398931654,1766004644373,-150.0,0.00015583,2]
[398931655,1766004644382,-150.0,0.0001559,2]
[398931656,1766004644391,-150.0,0.00015598,2]
[398931657,1766004644400,-150.0,0.00015601,2]
[398931658,1766004644408,-150.0,0.00015604,2]
[398931659,1766004644417,-150.0,0.0001561,2]
[398931660,1766004644428,-258.0068092,0.00015619,2]
[398931661,1766004644438,-150.0,0.00015619,2]
[398931662,1766004644447,-150.0,0.0001562,2]
[398931663,1766004644456,-318.58,0.00015622,2]
[398931664,1766004644465,-150.0,0.00015627,2]
[398931665,1766004644474,-150.0,0.00015627,2]
[398931666,1766004644483,-150.0,0.00015627,2]
[398931667,1766004644491,-150.0,0.00015627,2]
[398931668,1766004644500,-150.0,0.00015639,2]
[398931669,1766004644509,-150.0,0.0001564,2]
[398931670,1766004644517,-150.0,0.00015643,2]
[398931671,1766004644526,-150.0,0.00015652,2]
[398931672,1766004644535,-150.0,0.00015654,2]
[398931673,1766004644544,-150.0,0.00015657,2]
[398931674,1766004644553,-150.0,0.00015661,2]
[398931675,1766004644562,-150.0,0.00015665,2]
[398931676,1766004644571,-150.0,0.00015668,2]
[398931677,1766004644580,-150.0,0.00015676,2]
[398931678,1766004644589,-150.0,0.0001568,2]
[398931679,1766004644598,-150.0,0.0001568,2]
[398931680,1766004644607,-150.0,0.00015681,2]
[398931681,1766004644616,-150.0,0.00015683,2]
[398931682,1766004644625,-1551.16,0.0001569,2]
[398931683,1766004644634,-150.0,0.00015694,2]
[398931684,1766004644644,-150.0,0.00015698,2]
[398931685,1766004644655,-500.0,0.00015699,2]
[398931686,1766004644664,-150.0,0.00015702,2]
[398931687,1766004644673,-150.0,0.00015703,2]
[398931688,1766004644683,-150.0,0.00015706,2]
[398931689,1766004644692,-150.0,0.00015712,2]
[398931690,1766004644701,-150.0,0.00015712,2]
[398931691,1766004644712,-193.52,0.00015715,2]
[398931692,1766004644724,-150.0,0.00015722,2]
[398931693,1766004644733,-150.0,0.00015723,2]
[398931694,1766004644742,-150.0,0.00015724,2]
[398931695,1766004644751,-150.0,0.00015727,2]
[398931696,1766004644760,-150.0,0.00015731,2]
[398931697,1766004644770,-150.0,0.00015732,2]
[398931698,1766004644779,-150.0,0.00015741,2]
[398931699,1766004644789,-150.0,0.00015743,2]
[398931700,1766004644798,-150.0,0.00015756,2]
[398931701,1766004644808,-150.0,0.00015758,2]
[398931702,1766004644817,-150.0,0.00015762,2]
[398931703,1766004644826,-17938.75222853,0.00015764,2]
[398931704,1766004644834,-150.0,0.00015764,2]
[398931705,1766004644844,-150.0,0.00015768,2]
[398931706,1766004644853,-150.0,0.00015773,2]
[398931707,1766004644862,-150.0,0.00015773,2]
[398931708,1766004644871,-150.0,0.00015778,2]